[Event "Late-Titled-Tuesday-Blitz-February-13-2024"]
[Site "Chess.com"]
[Date "2024.02.13"]
[Round "7"]
[White "MusicCityMaster"]
[Black "combidharma"]
[Result "0-1"]
[WhiteElo "2466"]
[BlackElo "2705"]
[TimeControl "180+1"]
[EndTime "15:15:40 PST"]
[Termination "combidharma won by resignation"]

1. d4 {[%clk 0:02:59.9]} 1... Nf6 {[%clk 0:02:55.3]} 2. c4 {[%clk 0:03:00]} 2...
c5 {[%clk 0:02:54]} 3. d5 {[%clk 0:02:59.2]} 3... e6 {[%clk 0:02:54.4]} 4. Nc3
{[%clk 0:02:58.8]} 4... exd5 {[%clk 0:02:54.7]} 5. cxd5 {[%clk 0:02:59.7]} 5...
d6 {[%clk 0:02:54.9]} 6. Nf3 {[%clk 0:02:59.1]} 6... g6 {[%clk 0:02:55.5]} 7. h3
{[%clk 0:02:57.2]} 7... Bg7 {[%clk 0:02:56.4]} 8. Bf4 {[%clk 0:02:57.2]} 8...
O-O {[%clk 0:02:56.7]} 9. e3 {[%clk 0:02:56.6]} 9... a6 {[%clk 0:02:51.5]} 10.
a4 {[%clk 0:02:56.1]} 10... Re8 {[%clk 0:02:51.5]} 11. Bd3 {[%clk 0:02:56]}
11... Qe7 {[%clk 0:02:27.2]} 12. O-O {[%clk 0:02:55.4]} 12... Nbd7 {[%clk
0:02:27.3]} 13. Re1 {[%clk 0:02:51.2]} 13... Nh5 {[%clk 0:02:27.2]} 14. Bh2
{[%clk 0:02:41.1]} 14... Ne5 {[%clk 0:02:27.2]} 15. Be2 {[%clk 0:02:36.4]} 15...
Nxf3+ {[%clk 0:02:22.4]} 16. Bxf3 {[%clk 0:02:36.4]} 16... Nf6 {[%clk
0:02:23.3]} 17. e4 {[%clk 0:01:53.1]} 17... Nd7 {[%clk 0:02:22.9]} 18. Rc1
{[%clk 0:01:48.4]} 18... Rb8 {[%clk 0:02:19]} 19. Be2 {[%clk 0:01:25.7]} 19...
Be5 {[%clk 0:02:16.6]} 20. Bxe5 {[%clk 0:01:21.4]} 20... Qxe5 {[%clk 0:02:17.5]}
21. Qd2 {[%clk 0:01:18.8]} 21... Nf6 {[%clk 0:02:18.1]} 22. f4 {[%clk 0:01:09]}
22... Qd4+ {[%clk 0:02:16.3]} 23. Qxd4 {[%clk 0:01:07.2]} 23... cxd4 {[%clk
0:02:17.2]} 24. e5 {[%clk 0:01:00.4]} 24... dxe5 {[%clk 0:02:03.4]} 25. fxe5
{[%clk 0:01:00.1]} 25... Rxe5 {[%clk 0:02:04]} 26. Na2 {[%clk 0:00:53.6]} 26...
Nxd5 {[%clk 0:01:53.6]} 27. Bc4 {[%clk 0:00:51.9]} 27... Ne3 {[%clk 0:01:50]}
28. Nb4 {[%clk 0:00:46.2]} 28... Nxc4 {[%clk 0:01:47.8]} 29. Rxe5 {[%clk
0:00:40.9]} 29... Nxe5 {[%clk 0:01:48.7]} 30. Nd5 {[%clk 0:00:41.3]} 30... Be6
{[%clk 0:01:47]} 31. Nf6+ {[%clk 0:00:36.2]} 31... Kg7 {[%clk 0:01:47.5]} 32.
Ne4 {[%clk 0:00:36.2]} 32... d3 {[%clk 0:01:46.6]} 0-1

[Event "Late-Titled-Tuesday-Blitz-February-13-2024"]
[Site "Chess.com"]
[Date "2024.02.13"]
[Round "7"]
[White "BabageldiAnnaberdiyev"]
[Black "BeardedNM"]
[Result "1-0"]
[WhiteElo "2622"]
[BlackElo "2152"]
[TimeControl "180+1"]
[EndTime "15:15:50 PST"]
[Termination "BabageldiAnnaberdiyev won by resignation"]

1. e4 {[%clk 0:03:00.9]} 1... e6 {[%clk 0:03:00.3]} 2. d4 {[%clk 0:03:00.3]}
2... d5 {[%clk 0:03:01.2]} 3. e5 {[%clk 0:03:00.9]} 3... c5 {[%clk 0:03:01.2]}
4. c3 {[%clk 0:03:01.8]} 4... Qb6 {[%clk 0:03:01.6]} 5. Nf3 {[%clk 0:03:02]}
5... Nc6 {[%clk 0:03:02.1]} 6. a3 {[%clk 0:03:01.4]} 6... Nh6 {[%clk 0:03:02.2]}
7. b4 {[%clk 0:03:01.1]} 7... cxd4 {[%clk 0:03:02.6]} 8. cxd4 {[%clk 0:03:01.7]}
8... Nf5 {[%clk 0:03:02.9]} 9. Bb2 {[%clk 0:03:02.3]} 9... Bd7 {[%clk
0:03:02.8]} 10. g4 {[%clk 0:03:02.2]} 10... Nh6 {[%clk 0:03:01.5]} 11. h3 {[%clk
0:03:01]} 11... f6 {[%clk 0:03:00.9]} 12. Nc3 {[%clk 0:02:51.9]} 12... Nf7
{[%clk 0:02:53.6]} 13. Na4 {[%clk 0:02:51.6]} 13... Qd8 {[%clk 0:02:49.1]} 14.
Rc1 {[%clk 0:02:41.2]} 14... fxe5 {[%clk 0:02:47.1]} 15. dxe5 {[%clk 0:02:42.1]}
15... Rc8 {[%clk 0:02:34.4]} 16. Nc5 {[%clk 0:02:40.4]} 16... Bxc5 {[%clk
0:02:31.1]} 17. Rxc5 {[%clk 0:02:41.3]} 17... O-O {[%clk 0:02:25.5]} 18. Bd3
{[%clk 0:02:41.7]} 18... Ng5 {[%clk 0:02:17]} 19. Nxg5 {[%clk 0:02:40.3]} 19...
Qxg5 {[%clk 0:02:16.6]} 20. Qe2 {[%clk 0:02:40.1]} 20... b6 {[%clk 0:01:52.8]}
21. Rc2 {[%clk 0:02:39]} 21... Be8 {[%clk 0:01:41.4]} 22. O-O {[%clk 0:02:15.4]}
22... Bg6 {[%clk 0:01:32.5]} 23. Bxg6 {[%clk 0:02:05.4]} 23... Qxg6 {[%clk
0:01:27.4]} 24. Rfc1 {[%clk 0:02:05.9]} 24... Ne7 {[%clk 0:01:27.5]} 25. Rxc8
{[%clk 0:02:03.2]} 25... Rxc8 {[%clk 0:01:25.1]} 26. Rxc8+ {[%clk 0:02:02.2]}
26... Nxc8 {[%clk 0:01:26]} 27. Qb5 {[%clk 0:01:50.7]} 27... h5 {[%clk 0:01:16]}
28. Qd7 {[%clk 0:01:49.5]} 28... Qb1+ {[%clk 0:01:03]} 29. Kg2 {[%clk
0:01:47.3]} 29... Qxb2 {[%clk 0:01:03.3]} 30. Qxc8+ {[%clk 0:01:45]} 30... Kh7
{[%clk 0:01:03.7]} 31. Qxe6 {[%clk 0:01:45.5]} 31... hxg4 {[%clk 0:01:00.4]} 32.
hxg4 {[%clk 0:01:46.1]} 32... Qd4 {[%clk 0:00:54.8]} 33. Qf5+ {[%clk 0:01:45.1]}
33... Kg8 {[%clk 0:00:53.6]} 34. e6 {[%clk 0:01:42.4]} 34... Qf6 {[%clk
0:00:52.4]} 35. Qxf6 {[%clk 0:01:37.8]} 35... gxf6 {[%clk 0:00:52.5]} 36. f4
{[%clk 0:01:38.4]} 1-0

[Event "Late-Titled-Tuesday-Blitz-February-13-2024"]
[Site "Chess.com"]
[Date "2024.02.13"]
[Round "7"]
[White "pinguino120"]
[Black "dennisodessa"]
[Result "1-0"]
[WhiteElo "2374"]
[BlackElo "2572"]
[TimeControl "180+1"]
[EndTime "15:15:59 PST"]
[Termination "pinguino120 won by resignation"]

1. d4 {[%clk 0:03:00.9]} 1... Nf6 {[%clk 0:02:59.5]} 2. c4 {[%clk 0:02:59.9]}
2... e6 {[%clk 0:02:59.2]} 3. Nf3 {[%clk 0:02:59.4]} 3... Bb4+ {[%clk
0:02:59.7]} 4. Bd2 {[%clk 0:02:54.8]} 4... a5 {[%clk 0:02:59.9]} 5. g3 {[%clk
0:02:52.8]} 5... b6 {[%clk 0:02:59.9]} 6. Bg2 {[%clk 0:02:52.8]} 6... Bb7 {[%clk
0:03:00.5]} 7. O-O {[%clk 0:02:53.4]} 7... O-O {[%clk 0:03:01]} 8. Nc3 {[%clk
0:02:53.5]} 8... d6 {[%clk 0:03:00.9]} 9. Qc2 {[%clk 0:02:51.4]} 9... Nbd7
{[%clk 0:03:00.8]} 10. Rfe1 {[%clk 0:02:37.2]} 10... Bxc3 {[%clk 0:02:56.7]} 11.
Bxc3 {[%clk 0:02:38.1]} 11... Be4 {[%clk 0:02:56.6]} 12. Qd2 {[%clk 0:02:30.5]}
12... Qe7 {[%clk 0:02:57.5]} 13. Qf4 {[%clk 0:02:26.6]} 13... Rfe8 {[%clk
0:02:56.1]} 14. Rad1 {[%clk 0:02:19.4]} 14... Rad8 {[%clk 0:02:33.1]} 15. h4
{[%clk 0:02:06]} 15... h6 {[%clk 0:02:31.9]} 16. g4 {[%clk 0:01:59.6]} 16... e5
{[%clk 0:02:29.5]} 17. Qg3 {[%clk 0:01:52.9]} 17... Qe6 {[%clk 0:02:07.5]} 18.
g5 {[%clk 0:01:42.4]} 18... Nh5 {[%clk 0:02:05.6]} 19. Qh2 {[%clk 0:01:31.4]}
19... Nf4 {[%clk 0:01:49.6]} 20. d5 {[%clk 0:01:28]} 20... Qg4 {[%clk
0:01:45.8]} 21. Qg3 {[%clk 0:01:22.8]} 21... Qxg3 {[%clk 0:01:44.2]} 22. fxg3
{[%clk 0:01:23.6]} 22... Nxg2 {[%clk 0:01:44]} 23. Kxg2 {[%clk 0:01:24.5]} 23...
hxg5 {[%clk 0:01:43.7]} 24. hxg5 {[%clk 0:01:23.8]} 24... f6 {[%clk 0:01:24.8]}
25. gxf6 {[%clk 0:01:16.6]} 25... Nxf6 {[%clk 0:01:25.7]} 26. Bd2 {[%clk
0:01:04.9]} 26... Ng4 {[%clk 0:01:23.6]} 27. Bg5 {[%clk 0:01:03.1]} 27... Rd7
{[%clk 0:01:20.4]} 28. Rh1 {[%clk 0:01:01.4]} 28... Rf7 {[%clk 0:01:15.3]} 29.
Rh4 {[%clk 0:00:59.1]} 29... Ref8 {[%clk 0:01:13.9]} 30. Rxg4 {[%clk 0:00:57.8]}
30... Rxf3 {[%clk 0:01:13.6]} 31. Rxe4 {[%clk 0:00:56.1]} 31... Rf2+ {[%clk
0:01:12.9]} 32. Kg1 {[%clk 0:00:51.6]} 1-0

[Event "Late-Titled-Tuesday-Blitz-February-13-2024"]
[Site "Chess.com"]
[Date "2024.02.13"]
[Round "7"]
[White "deepfear"]
[Black "Cristi_Coca"]
[Result "0-1"]
[WhiteElo "1988"]
[BlackElo "2376"]
[TimeControl "180+1"]
[EndTime "15:16:07 PST"]
[Termination "Cristi_Coca won on time"]

1. e4 {[%clk 0:02:58.3]} 1... c5 {[%clk 0:02:59.7]} 2. Nc3 {[%clk 0:02:55.5]}
2... e6 {[%clk 0:02:58.4]} 3. g3 {[%clk 0:02:53.9]} 3... Nc6 {[%clk 0:02:58]} 4.
Bg2 {[%clk 0:02:53.8]} 4... g6 {[%clk 0:02:56.5]} 5. d3 {[%clk 0:02:51.7]} 5...
Bg7 {[%clk 0:02:57]} 6. Be3 {[%clk 0:02:50.7]} 6... d6 {[%clk 0:02:56.8]} 7. Qd2
{[%clk 0:02:43.5]} 7... Nge7 {[%clk 0:02:56.8]} 8. Nf3 {[%clk 0:02:40.7]} 8...
Nd4 {[%clk 0:02:50.7]} 9. O-O {[%clk 0:02:38.6]} 9... Nec6 {[%clk 0:02:48.3]}
10. Nd1 {[%clk 0:01:59.7]} 10... Rb8 {[%clk 0:02:44.6]} 11. c3 {[%clk
0:01:59.4]} 11... Nxf3+ {[%clk 0:02:44.3]} 12. Bxf3 {[%clk 0:01:59.2]} 12... b5
{[%clk 0:02:44.7]} 13. Bh6 {[%clk 0:01:54.9]} 13... O-O {[%clk 0:02:42.1]} 14.
Bxg7 {[%clk 0:01:48.8]} 14... Kxg7 {[%clk 0:02:43]} 15. Re1 {[%clk 0:01:48.6]}
15... b4 {[%clk 0:02:42.8]} 16. d4 {[%clk 0:01:42.8]} 16... bxc3 {[%clk
0:02:39]} 17. bxc3 {[%clk 0:01:42.6]} 17... cxd4 {[%clk 0:02:38.7]} 18. cxd4
{[%clk 0:01:41.3]} 18... e5 {[%clk 0:02:39.4]} 19. d5 {[%clk 0:01:32.3]} 19...
Nd4 {[%clk 0:02:38.9]} 20. Bg2 {[%clk 0:01:29.8]} 20... Bg4 {[%clk 0:02:34.9]}
21. Re3 {[%clk 0:01:18.1]} 21... Qb6 {[%clk 0:02:29.1]} 22. h3 {[%clk
0:01:12.3]} 22... Bxd1 {[%clk 0:02:25.5]} 23. Qxd1 {[%clk 0:00:56.7]} 23... Rfc8
{[%clk 0:02:25.8]} 24. Kh1 {[%clk 0:00:50.9]} 24... Qb2 {[%clk 0:02:24.8]} 25.
Qf1 {[%clk 0:00:35.8]} 25... Rc2 {[%clk 0:02:22.5]} 26. Kg1 {[%clk 0:00:31]}
26... Rbc8 {[%clk 0:02:11.8]} 27. Rb1 {[%clk 0:00:26.6]} 27... Qxa2 {[%clk
0:02:04]} 28. h4 {[%clk 0:00:20.1]} 28... a5 {[%clk 0:02:00.2]} 29. h5 {[%clk
0:00:19.7]} 29... a4 {[%clk 0:01:57.2]} 30. g4 {[%clk 0:00:15.8]} 30... Qxb1
{[%clk 0:01:52.8]} 31. Qxb1 {[%clk 0:00:15.1]} 31... Rc1+ {[%clk 0:01:53.3]} 32.
Re1 {[%clk 0:00:12.4]} 32... Rxb1 {[%clk 0:01:52.6]} 33. Rxb1 {[%clk 0:00:12.1]}
33... a3 {[%clk 0:01:53.1]} 0-1

[Event "Late-Titled-Tuesday-Blitz-February-13-2024"]
[Site "Chess.com"]
[Date "2024.02.13"]
[Round "7"]
[White "Rinqed222"]
[Black "ArchibaldCerveza29"]
[Result "0-1"]
[WhiteElo "2267"]
[BlackElo "2502"]
[TimeControl "180+1"]
[EndTime "15:16:11 PST"]
[Termination "ArchibaldCerveza29 won by resignation"]

1. e4 {[%clk 0:03:00.9]} 1... c5 {[%clk 0:02:58.1]} 2. Nc3 {[%clk 0:03:00.6]}
2... a6 {[%clk 0:02:58]} 3. g3 {[%clk 0:03:00.6]} 3... b5 {[%clk 0:02:58.7]} 4.
Bg2 {[%clk 0:03:00.7]} 4... Bb7 {[%clk 0:02:59.5]} 5. d3 {[%clk 0:03:01]} 5...
e6 {[%clk 0:03:00.1]} 6. f4 {[%clk 0:02:56.7]} 6... d5 {[%clk 0:02:59.6]} 7. Qe2
{[%clk 0:02:55.3]} 7... b4 {[%clk 0:02:57.6]} 8. Nd1 {[%clk 0:02:54.3]} 8... Nf6
{[%clk 0:02:57.5]} 9. Nf2 {[%clk 0:02:51.7]} 9... Be7 {[%clk 0:02:56.4]} 10. e5
{[%clk 0:02:50.9]} 10... Nfd7 {[%clk 0:02:55.9]} 11. Nf3 {[%clk 0:02:51.6]}
11... Nc6 {[%clk 0:02:55.7]} 12. O-O {[%clk 0:02:51.3]} 12... Nb6 {[%clk
0:02:54.7]} 13. g4 {[%clk 0:02:41.4]} 13... Qc7 {[%clk 0:02:53.2]} 14. f5 {[%clk
0:02:40.5]} 14... O-O-O {[%clk 0:02:53.2]} 15. Bf4 {[%clk 0:02:37.8]} 15... h5
{[%clk 0:02:45.9]} 16. h3 {[%clk 0:02:35.3]} 16... Rdg8 {[%clk 0:02:39.3]} 17.
c3 {[%clk 0:02:14.4]} 17... g5 {[%clk 0:02:38.5]} 18. Bh2 {[%clk 0:02:06.7]}
18... hxg4 {[%clk 0:02:34.7]} 19. hxg4 {[%clk 0:02:07.1]} 19... exf5 {[%clk
0:02:17.7]} 20. gxf5 {[%clk 0:02:01.5]} 20... g4 {[%clk 0:02:17.8]} 21. f6
{[%clk 0:01:18.1]} 21... gxf3 {[%clk 0:02:14.4]} 22. Qxf3 {[%clk 0:01:19]} 22...
Nxe5 {[%clk 0:02:08.8]} 23. Qf5+ {[%clk 0:01:16.3]} 23... Nbd7 {[%clk
0:02:04.8]} 24. Nh3 {[%clk 0:00:56.3]} 24... Bd6 {[%clk 0:01:54.4]} 25. Rae1
{[%clk 0:00:51.2]} 25... d4 {[%clk 0:01:51.3]} 26. Ng5 {[%clk 0:00:36.3]} 26...
Rxh2 {[%clk 0:01:20.4]} 27. Kxh2 {[%clk 0:00:33.5]} 27... Nf3+ {[%clk
0:01:04.5]} 0-1

[Event "Late-Titled-Tuesday-Blitz-February-13-2024"]
[Site "Chess.com"]
[Date "2024.02.13"]
[Round "7"]
[White "scandalgod"]
[Black "Burgsvik"]
[Result "1-0"]
[WhiteElo "2511"]
[BlackElo "2316"]
[TimeControl "180+1"]
[EndTime "15:16:20 PST"]
[Termination "scandalgod won by checkmate"]

1. d4 {[%clk 0:02:57.5]} 1... c5 {[%clk 0:03:00.9]} 2. d5 {[%clk 0:02:56.7]}
2... d6 {[%clk 0:03:00.6]} 3. e4 {[%clk 0:02:54.9]} 3... g6 {[%clk 0:03:01]} 4.
Nf3 {[%clk 0:02:53.9]} 4... Bg7 {[%clk 0:03:01.4]} 5. Be2 {[%clk 0:02:54.1]}
5... Na6 {[%clk 0:03:02.3]} 6. O-O {[%clk 0:02:54.1]} 6... Nc7 {[%clk
0:03:02.4]} 7. a4 {[%clk 0:02:53]} 7... Bd7 {[%clk 0:03:02]} 8. Nc3 {[%clk
0:02:51.7]} 8... a6 {[%clk 0:03:02.3]} 9. Re1 {[%clk 0:02:50.3]} 9... b5 {[%clk
0:03:02.3]} 10. axb5 {[%clk 0:02:50]} 10... axb5 {[%clk 0:03:03.2]} 11. Rxa8
{[%clk 0:02:49.9]} 11... Qxa8 {[%clk 0:03:02.9]} 12. Bf1 {[%clk 0:02:49.5]}
12... b4 {[%clk 0:02:58.9]} 13. Nb1 {[%clk 0:02:48.1]} 13... Nf6 {[%clk
0:02:57.4]} 14. Nbd2 {[%clk 0:02:46.3]} 14... O-O {[%clk 0:02:55.8]} 15. Nc4
{[%clk 0:02:46.5]} 15... Bb5 {[%clk 0:02:55.2]} 16. Bg5 {[%clk 0:02:44.6]} 16...
Bxc4 {[%clk 0:02:52.4]} 17. Bxc4 {[%clk 0:02:43.8]} 17... h6 {[%clk 0:02:51.6]}
18. Bh4 {[%clk 0:02:41.5]} 18... g5 {[%clk 0:02:46.5]} 19. Bg3 {[%clk
0:02:41.5]} 19... Nh5 {[%clk 0:02:42.6]} 20. e5 {[%clk 0:02:39]} 20... Nxg3
{[%clk 0:02:42.4]} 21. hxg3 {[%clk 0:02:36.4]} 21... Kh8 {[%clk 0:02:11.9]} 22.
b3 {[%clk 0:02:28.5]} 22... Rd8 {[%clk 0:02:06.6]} 23. exd6 {[%clk 0:02:24.2]}
23... exd6 {[%clk 0:02:06.6]} 24. Re7 {[%clk 0:02:18.4]} 24... Qc8 {[%clk
0:01:51.7]} 25. Nxg5 {[%clk 0:02:08.6]} 25... Rf8 {[%clk 0:01:34.9]} 26. Nxf7+
{[%clk 0:02:01]} 26... Kg8 {[%clk 0:01:31.8]} 27. Qh5 {[%clk 0:01:56.1]} 27...
Ne8 {[%clk 0:00:45.3]} 28. Nxh6+ {[%clk 0:01:46.4]} 28... Bxh6 {[%clk
0:00:18.8]} 29. Qxh6 {[%clk 0:01:47.3]} 29... Qf5 {[%clk 0:00:18]} 30. f3 {[%clk
0:01:35]} 30... Nf6 {[%clk 0:00:06.6]} 31. Qg7# {[%clk 0:01:31.7]} 1-0

[Event "Late-Titled-Tuesday-Blitz-February-13-2024"]
[Site "Chess.com"]
[Date "2024.02.13"]
[Round "7"]
[White "YellowJacek"]
[Black "Qingdom"]
[Result "1/2-1/2"]
[WhiteElo "2383"]
[BlackElo "2203"]
[TimeControl "180+1"]
[EndTime "15:16:23 PST"]
[Termination "Game drawn - insufficient material"]

1. e4 {[%clk 0:03:00.9]} 1... c5 {[%clk 0:02:59.3]} 2. Nf3 {[%clk 0:02:59.9]}
2... Nc6 {[%clk 0:02:59.1]} 3. d4 {[%clk 0:03:00.1]} 3... cxd4 {[%clk
0:02:59.2]} 4. Nxd4 {[%clk 0:03:00.4]} 4... e5 {[%clk 0:02:59.3]} 5. Nb5 {[%clk
0:02:59.9]} 5... d6 {[%clk 0:02:59.5]} 6. N1c3 {[%clk 0:02:59.9]} 6... a6 {[%clk
0:02:59.8]} 7. Na3 {[%clk 0:03:00]} 7... Be7 {[%clk 0:03:00.1]} 8. Nd5 {[%clk
0:03:00]} 8... Nf6 {[%clk 0:02:59.6]} 9. Nxf6+ {[%clk 0:02:44.9]} 9... Bxf6
{[%clk 0:02:42.7]} 10. Nc4 {[%clk 0:02:45.8]} 10... O-O {[%clk 0:02:41.9]} 11.
Ne3 {[%clk 0:02:40.4]} 11... Bg5 {[%clk 0:02:40.4]} 12. h4 {[%clk 0:02:36.5]}
12... Bh6 {[%clk 0:02:39.2]} 13. c3 {[%clk 0:02:29.4]} 13... Be6 {[%clk
0:02:37.5]} 14. Nd5 {[%clk 0:02:24.3]} 14... Bxc1 {[%clk 0:02:33.5]} 15. Rxc1
{[%clk 0:02:25.2]} 15... b5 {[%clk 0:02:28.9]} 16. Be2 {[%clk 0:02:15.1]} 16...
Ne7 {[%clk 0:02:26.5]} 17. Nxe7+ {[%clk 0:02:11]} 17... Qxe7 {[%clk 0:02:26.3]}
18. g3 {[%clk 0:02:09.9]} 18... Rfd8 {[%clk 0:02:25.6]} 19. Bf3 {[%clk
0:02:07.7]} 19... a5 {[%clk 0:02:18.3]} 20. a3 {[%clk 0:02:04.2]} 20... Qb7
{[%clk 0:02:05.2]} 21. O-O {[%clk 0:02:02.7]} 21... d5 {[%clk 0:02:05.1]} 22.
exd5 {[%clk 0:02:02.1]} 22... Bxd5 {[%clk 0:02:05.4]} 23. Bxd5 {[%clk
0:02:00.3]} 23... Rxd5 {[%clk 0:02:05]} 24. Qe2 {[%clk 0:02:00.5]} 24... Rad8
{[%clk 0:02:03.6]} 25. Rcd1 {[%clk 0:01:58.7]} 25... f6 {[%clk 0:02:00.8]} 26.
Qe4 {[%clk 0:01:43.7]} 26... Qd7 {[%clk 0:01:56.3]} 27. Rxd5 {[%clk 0:01:39.5]}
27... Qxd5 {[%clk 0:01:56.4]} 28. Qe2 {[%clk 0:01:38.9]} 28... b4 {[%clk
0:01:52.4]} 29. cxb4 {[%clk 0:01:37]} 29... axb4 {[%clk 0:01:52.6]} 30. axb4
{[%clk 0:01:37.6]} 30... Qb3 {[%clk 0:01:44.4]} 31. b5 {[%clk 0:01:29.4]} 31...
Qd3 {[%clk 0:01:32.7]} 32. Qxd3 {[%clk 0:01:19]} 32... Rxd3 {[%clk 0:01:32.3]}
33. Rb1 {[%clk 0:01:19.5]} 33... Rb3 {[%clk 0:01:32.1]} 34. Kf1 {[%clk 0:01:20]}
34... Kf7 {[%clk 0:01:31.9]} 35. Ke2 {[%clk 0:01:20.3]} 35... Ke6 {[%clk
0:01:31.8]} 36. Kd2 {[%clk 0:01:20.8]} 36... Kd5 {[%clk 0:01:32]} 37. Kc2 {[%clk
0:01:21.3]} 37... Rxb5 {[%clk 0:01:32.2]} 38. Kc3 {[%clk 0:01:21.9]} 38... Ke4
{[%clk 0:01:30.5]} 39. Kc4 {[%clk 0:01:20]} 39... Rb8 {[%clk 0:01:28.7]} 40. b4
{[%clk 0:01:20.7]} 40... Rc8+ {[%clk 0:01:24.8]} 41. Kb5 {[%clk 0:01:18.9]}
41... Kf3 {[%clk 0:01:24.5]} 42. Rb2 {[%clk 0:01:18.6]} 42... f5 {[%clk
0:01:22.7]} 43. Kb6 {[%clk 0:01:18.8]} 43... e4 {[%clk 0:01:21.2]} 44. Kb7
{[%clk 0:01:19.1]} 44... Rf8 {[%clk 0:01:15.5]} 45. b5 {[%clk 0:01:18.4]} 45...
g6 {[%clk 0:01:13]} 46. b6 {[%clk 0:01:18.3]} 46... h6 {[%clk 0:01:13]} 47. Kc6
{[%clk 0:01:18.6]} 47... g5 {[%clk 0:01:11]} 48. hxg5 {[%clk 0:01:19]} 48...
hxg5 {[%clk 0:01:11.4]} 49. b7 {[%clk 0:01:19.8]} 49... Rb8 {[%clk 0:01:09.8]}
50. Kc7 {[%clk 0:01:20.1]} 50... Rxb7+ {[%clk 0:01:10.1]} 51. Kxb7 {[%clk
0:01:20.3]} 51... f4 {[%clk 0:01:10.6]} 52. gxf4 {[%clk 0:01:20.4]} 52... gxf4
{[%clk 0:01:11.1]} 53. Kc6 {[%clk 0:01:21.1]} 53... e3 {[%clk 0:01:11.6]} 54.
fxe3 {[%clk 0:01:19.2]} 54... fxe3 {[%clk 0:01:11.8]} 55. Kd5 {[%clk 0:01:18.2]}
55... e2 {[%clk 0:01:12]} 56. Rb1 {[%clk 0:01:18.2]} 56... Kf2 {[%clk
0:01:12.1]} 57. Kd6 {[%clk 0:01:18]} 57... e1=Q {[%clk 0:01:11.9]} 58. Rxe1
{[%clk 0:01:17.8]} 58... Kxe1 {[%clk 0:01:12.2]} 1/2-1/2

[Event "Late-Titled-Tuesday-Blitz-February-13-2024"]
[Site "Chess.com"]
[Date "2024.02.13"]
[Round "7"]
[White "CRObliterator"]
[Black "stregachess"]
[Result "1-0"]
[WhiteElo "2382"]
[BlackElo "2068"]
[TimeControl "180+1"]
[EndTime "15:16:41 PST"]
[Termination "CRObliterator won by resignation"]

1. e4 {[%clk 0:02:56.7]} 1... c5 {[%clk 0:02:59.7]} 2. c3 {[%clk 0:02:56.3]}
2... d5 {[%clk 0:02:58.6]} 3. exd5 {[%clk 0:02:52.9]} 3... Qxd5 {[%clk
0:02:58.8]} 4. d4 {[%clk 0:02:53.3]} 4... cxd4 {[%clk 0:02:59.1]} 5. cxd4 {[%clk
0:02:53.5]} 5... e6 {[%clk 0:02:59.4]} 6. Nc3 {[%clk 0:02:53.2]} 6... Bb4 {[%clk
0:02:59.5]} 7. Qa4+ {[%clk 0:02:44.8]} 7... Nc6 {[%clk 0:02:57.7]} 8. Qxb4
{[%clk 0:02:44.6]} 8... Nxb4 {[%clk 0:02:57.9]} 9. Nxd5 {[%clk 0:02:44.8]} 9...
Nc2+ {[%clk 0:02:58.1]} 10. Kd1 {[%clk 0:02:44.4]} 10... Nxa1 {[%clk 0:02:58.2]}
11. Nc7+ {[%clk 0:02:44.6]} 11... Kd7 {[%clk 0:02:57.8]} 12. Nxa8 {[%clk
0:02:45.1]} 12... b6 {[%clk 0:02:45.7]} 13. Bf4 {[%clk 0:02:43]} 13... Bb7
{[%clk 0:02:22.5]} 14. Bb5+ {[%clk 0:02:42.3]} 14... Kd8 {[%clk 0:02:20.6]} 15.
Nc7 {[%clk 0:02:37.8]} 15... Nf6 {[%clk 0:02:19.2]} 16. Nf3 {[%clk 0:02:28.9]}
16... Ne4 {[%clk 0:02:11.5]} 17. Ke2 {[%clk 0:02:20.5]} 17... Nc2 {[%clk
0:02:08.1]} 18. Bd3 {[%clk 0:02:15.9]} 18... Nb4 {[%clk 0:02:00.5]} 19. Ne5
{[%clk 0:02:04.8]} 19... Rf8 {[%clk 0:01:56.5]} 20. Bb1 {[%clk 0:01:48]} 20...
g5 {[%clk 0:01:54.9]} 21. Bxe4 {[%clk 0:01:42.4]} 21... Bxe4 {[%clk 0:01:42.6]}
22. Bxg5+ {[%clk 0:01:41.9]} 22... Kxc7 {[%clk 0:01:40.5]} 23. Be7 {[%clk
0:01:39.2]} 23... Rg8 {[%clk 0:01:27.9]} 24. Bxb4 {[%clk 0:01:32]} 24... Rxg2
{[%clk 0:01:22.9]} 25. Rc1+ {[%clk 0:01:32]} 25... Kb7 {[%clk 0:01:23]} 26. Ke3
{[%clk 0:01:29.6]} 26... f5 {[%clk 0:01:14]} 27. Nf7 {[%clk 0:01:18.9]} 27...
Bd5 {[%clk 0:01:08.7]} 28. Nd6+ {[%clk 0:01:16.9]} 28... Ka6 {[%clk 0:01:06.1]}
29. Rc3 {[%clk 0:01:16.8]} 29... b5 {[%clk 0:00:57.3]} 30. Bc5 {[%clk
0:01:16.9]} 30... b4 {[%clk 0:00:45.2]} 31. Bxb4 {[%clk 0:01:15.1]} 31... Kb6
{[%clk 0:00:07.3]} 32. Bc5+ {[%clk 0:01:14.2]} 1-0